Cogmind - Beta 12 *** ADVENTURER MODE // 2023.04.20 @ 07:31:39 Player: Moridin Result: Destroyed self with Mini Grenade Launcher Performance ------------- Evolutions (1) 500 Regions Visited (4) 800 Robots Destroyed (13) 65 Value Destroyed (466) 466 Prototype IDs (0) 0 Alien Tech Used (0) 0 Bonus (126) 126 TOTAL SCORE: 1957 Bonus ------- High Alert Combat Kills 30 Follower Combat Kills 118 Friendly Fire -22 Cogmind --------- Core Integrity 0/400 Matter 290/300 Energy 100/100 System Corruption 6% Temperature Cool (0) Movement Rolling (90) Location -9/Mines Parts ------- > --- POWER (1) -------- (None) > --- PROPULSION (4) --- Wheel Compact Wheel > --- UTILITY (2) ------ Large Storage Unit > --- WEAPON (2) ------- Mini Grenade Launcher > --- INVENTORY (15) --- Ion Engine Medium Storage Unit High-capacity Storage Unit Improved Sensor Array Improved Sensor Array Targeting Computer ECM Suite Small Laser Mining Laser Peak State ------------ > --- POWER ------------ Light Ion Engine > --- PROPULSION ------- Improved Hover Unit Improved Hover Unit Improved Hover Unit Improved Hover Unit > --- UTILITY ---------- Large Storage Unit Improved Sensor Array > --- WEAPON ----------- Heavy Battle Rifle > --- INVENTORY -------- Ion Engine Medium Storage Unit High-capacity Storage Unit Sensor Array Targeting Computer ECM Suite EM Shotgun EM Shotgun Small Laser Mining Laser [Rating: 18] Favorites ----------- Power Improved Ion Engine Engine Improved Ion Engine Propulsion Improved Hover Unit Treads Light Treads Leg Aluminum Leg Wheel Compact Wheel Hover Unit Improved Hover Unit Utility Large Storage Unit Device Improved Sensor Array Storage Large Storage Unit Weapon EM Shotgun Energy Gun EM Shotgun Ballistic Gun Heavy Battle Rifle Launcher Mini Grenade Launcher Build | -11 -10 -10 -9 -9 ------- Run | Jun Mat Min Mat Min Slots Evolved 2 | . . . 2 . Power . | . . . . . Propulsion 2 | . . . 2 . Utility . | . . . . . Weapon . | . . . . . Parts Attached 25 | 7 3 3 9 3 Power 5 | 2 . 1 2 . Engine 5 | 2 . 1 2 . Core . | . . . . . Reactor . | . . . . . Propulsion 9 | 2 2 . 3 2 Treads 1 | . . . 1 . Leg 2 | 2 . . . . Wheel 2 | . . . . 2 Hover 4 | . 2 . 2 . Flight . | . . . . . Utility 4 | 1 1 . 2 . Device 2 | . 1 . 1 . Storage 2 | 1 . . 1 . Processor . | . . . . . Hackware . | . . . . . Protection . | . . . . . Artifact . | . . . . . Weapon 7 | 2 . 2 2 1 Energy Gun 5 | 2 . 1 2 . Energy Cannon . | . . . . . Ballistic Gun 1 | . . 1 . . Ballistic Cannon . | . . . . . Launcher 1 | . . . . 1 Special Weapon . | . . . . . Impact Weapon . | . . . . . Slashing Weapon . | . . . . . Piercing Weapon . | . . . . . Special Melee Weapon . | . . . . . Unidentified Prototypes . | . . . . . Corrupted Parts 1 | . . . 1 . System Corruption 5 | . . . 5 . Parts Lost 11 | . . . 5 6 Power 2 | . . . 1 1 Propulsion 5 | . . . 3 2 Utility 1 | . . . . 1 Weapon 3 | . . . 1 2 Highest Loss Streak 5 | . . . 5 4 To Critical Strikes . | . . . . . Average Slot Usage (%) 76 | . 94 100 85 64 Engine 10 | . 14 14 10 8 Treads 5 | . . . 1 8 Leg 1 | . 8 . . . Hover 17 | . 19 28 36 6 Device 9 | . 8 14 11 8 Storage 11 | . 14 14 11 11 Energy Gun 14 | . 28 18 5 15 Ballistic Gun 3 | . . 10 9 . Launcher 2 | . . . . 4 Naked Turns . | . . . . . Heaviest Build 34 | 13 14 14 34 34 Greatest Support 28 | 20 20 14 28 26 Greatest Overweight (x) 6 | 4 1 . 2 6 Average Overweight (x) . | 1 . . . 1 Largest Inventory Capacity 15 | 8 8 8 15 15 Average Capacity 12 | 7 8 8 13 15 Most Carried 12 | 4 8 8 12 10 Average Carried 8 | 2 6 7 9 9 Final Capacity 15 | 8 8 8 15 15 Final Carried 10 | 4 8 8 10 9 Class Distribution -------------------- 100% | Mutant Dominant Class ---------------- Mutant | -10/Materials Mutant | -10/Mines Mutant | -9/Materials Mutant | -9/Mines Resources | -11 -10 -10 -9 -9 ----------- Run | Jun Mat Min Mat Min Matter Collected 671 | 234 47 18 166 206 Remotely . | . . . . . Salvage Created 490 | . 47 . 294 149 Parts 25 | . 3 . 14 8 Haulers Intercepted . | . . . . . Recyclers Shooed . | . . . . . Parts Field Recycled . | . . . . . Retrieved Matter . | . . . . . Parts Self-Destructed . | . . . . . Prevented . | . . . . . Kills | -11 -10 -10 -9 -9 ------- Run | Jun Mat Min Mat Min Combat Hostiles Destroyed 19 | . 1 . 7 11 Guns 13 | . . . 6 7 AOE 6 | . 1 . 1 4 Classes Destroyed 5 | . 1 . 1 3 Swarmer 3 | . . . . 3 Grunt 6 | . 1 . 5 . Sentry 2 | . . . 2 . Demolisher 2 | . . . . 2 Assembled 6 | . . . . 6 Best Kill Streak 4 | . 1 . 4 3 Combat Bots Only 4 | . 1 . 4 3 Max Kills in Single Turn 2 | . 1 . 1 2 Gunslinging 1 | . . . . 1 Exploded 2 | . 1 . 1 2 Melee . | . . . . . Uniques/NPCs Destroyed . | . . . . . Combat | -11 -10 -10 -9 -9 -------- Run | Jun Mat Min Mat Min Damage Taken 1201 | . 24 . 400 777 Core 438 | . 8 . 60 370 Absorbed by Shields . | . . . . . Core Remaining (%) 98 | 100 . 96 . . Volleys Fired 64 | . 2 . 38 24 Largest 2 | . 2 . 2 2 Hottest 90 | . 80 . 90 90 Shots Fired 84 | . 4 . 41 39 Gun 70 | . 4 . 41 25 Cannon . | . . . . . Launcher 14 | . . . . 14 Special . | . . . . . Kinetic 35 | . . . 35 . Thermal 2 | . 2 . . . Explosive 14 | . . . . 14 Electromagnetic 33 | . 2 . 6 25 Robot Hit Streak 20 | . 4 . 20 12 Robot Miss Streak 5 | . . . 3 5 Penetration Max . | . . . . . Secondary Targets 1 | . . . . 1 Max Gunslinging Chain 1 | . . . . 1 Shots Hit Robots 68 | . 4 . 34 30 Core Hits 47 | . 2 . 16 29 Critical Kills 1 | . . . 1 . Critical Parts Destroyed . | . . . . . Critical Strikes 1 | . . . 1 . Destroy 1 | . . . 1 . Melee Attacks . | . . . . . Impact . | . . . . . Slashing . | . . . . . Piercing . | . . . . . Sneak Attacks . | . . . . . Combat Hostiles . | . . . . . Follow-up Attacks . | . . . . . Damage Inflicted 1486 | 4 106 . 949 427 Guns 1044 | . 40 . 770 234 Cannons . | . . . . . Explosions 437 | . 66 . 179 192 Melee . | . . . . . Ramming 5 | 4 . . . 1 Kinetic 698 | . . . 698 . Thermal 133 | . 78 . 55 . Explosive 192 | . . . . 192 Electromagnetic 458 | . 28 . 196 234 Impact . | . . . . . Slashing . | . . . . . Piercing . | . . . . . Highest Corruption 6 | . . . 6 6 Average Corruption 5 | . . . 4 6 Corruption Purged . | . . . . . Corruption Blocked . | . . . . . Effects 16 | . . . . 16 Message Errors 3 | . . . . 3 Matter Fused 5 | . . . . 5 Heat Flow Errors 1 | . . . . 1 Energy Discharges 1 | . . . . 1 Data Loss (minor) 2 | . . . . 2 Data Loss (major) 1 | . . . . 1 Misfires 3 | . . . . 3 Overload Shots . | . . . . . Overflow Damage 6 | . . . 4 2 Projectiles . | . . . . . Explosions 6 | . . . 4 2 Melee . | . . . . . Knockbacks . | . . . . . Impact . | . . . . . Kinetic . | . . . . . Secondary . | . . . . . Self-Inflicted Damage 214 | . . . 43 171 Shots 13 | . . . 2 11 Rammed 1 | . . . . 1 Targets Rammed 3 | 2 . . . 1 Kicked 2 | 2 . . . . Crushed . | . . . . . Highest Temperature 135 | . 36 . 93 135 Average Temperature 26 | . 20 . 23 28 Received Heat Transfer 192 | . 18 . 174 . Siege Activations . | . . . . . Robots Corrupted . | . . . . . Combat Hostiles . | . . . . . Parts Fried 1 | . . . 1 . Impact Corruptions . | . . . . . Robots Melted . | . . . . . Combat Hostiles . | . . . . . Parts Melted . | . . . . . Heat Transferred 175 | . 75 . 100 . Parts Sabotaged . | . . . . . Parts Stolen . | . . . . . Parts Stripped . | . . . . . Power Chain Reactions 2 | . 1 . 1 . Missiles Intercepted . | . . . . . Alert | -11 -10 -10 -9 -9 ------- Run | Jun Mat Min Mat Min Peak Influence 478 | . 132 73 478 257 Initial 157 | . . 43 24 157 Average 158 | . 56 46 209 191 Maximum Alert Level 2 | . . . 2 1 Low Security (%) 53 | 100 100 100 59 28 Level 1 40 | . . . 19 71 Level 2 5 | . . . 21 . Level 3 . | . . . . . Level 4 . | . . . . . Level 5 . | . . . . . High Security . | . . . . . Max Security . | . . . . . Squads Dispatched 3 | . 1 . 2 . Investigation 3 | . 1 . 2 . Extermination . | . . . . . Reinforcement . | . . . . . Assault . | . . . . . Garrison . | . . . . . Intercept . | . . . . . Searches Triggered . | . . . . . Construction Impeded . | . . . . . Haulers Reinforced . | . . . . . Active Scanning Responses . | . . . . . Cargo Convoy Interrupts . | . . . . . Stealth | -11 -10 -10 -9 -9 --------- Run | Jun Mat Min Mat Min Distress Signals 5 | . 1 . 3 1 Communications Jammed . | . . . . . Distress Signals . | . . . . . Times Spotted 42 | . 6 2 24 10 Peak Tracking Total 14 | . 4 2 14 2 Tactical Retreats 6 | . 2 1 3 . Traps | -11 -10 -10 -9 -9 ------- Run | Jun Mat Min Mat Min Traps Triggered . | . . . . . Indirectly . | . . . . . Trap Hack Attempts . | . . . . . Triggered . | . . . . . Disarmed 6 | . 6 . . . Reprogrammed . | . . . . . Reused . | . . . . . Traps Extracted . | . . . . . Installed . | . . . . . Triggered . | . . . . . Machines | -11 -10 -10 -9 -9 ---------- Run | Jun Mat Min Mat Min Machines Disabled 1 | . . . 1 . Max in Single Turn 1 | . . . 1 . Machines Repaired . | . . . . . Machines Sabotaged . | . . . . . Overloaded Fab Kills . | . . . . . Hacking | -11 -10 -10 -9 -9 --------- Run | Jun Mat Min Mat Min Machines Accessed 7 | . 2 . 5 . Terminals 6 | . 2 . 4 . Fabricators . | . . . . . Repair Stations . | . . . . . Recycling Units . | . . . . . Scanalyzers 1 | . . . 1 . Garrison Access . | . . . . . Total Hacks 21 | . 9 . 12 . Successful 6 | . 4 . 2 . Failed 15 | . 5 . 10 . Catastrophic 1 | . . . 1 . Database Lockouts . | . . . . . Manual . | . . . . . Terminals 19 | . 9 . 10 . Fabricators . | . . . . . Repair Stations . | . . . . . Recycling Units . | . . . . . Scanalyzers 2 | . . . 2 . Garrison Access . | . . . . . Terminal Hacks 6 | . 4 . 2 . Branch Access Points 1 | . 1 . . . Emergency Access Points 1 | . 1 . . . Disarm Traps 1 | . 1 . . . Zone Layout 3 | . 1 . 2 . Fabricator Hacks . | . . . . . Repair Station Hacks . | . . . . . Recycling Unit Hacks . | . . . . . Scanalyzer . | . . . . . Garrison Access Hacks . | . . . . . Unauthorized Hacks . | . . . . . Terminals . | . . . . . Fabricators . | . . . . . Repair Stations . | . . . . . Recycling Units . | . . . . . Scanalyzers . | . . . . . Garrison Access . | . . . . . Data Cores Recovered . | . . . . . Used . | . . . . . Hacking Detections 7 | . 2 . 5 . Full Trace Events 3 | . 1 . 2 . Feedback Events . | . . . . . Feedback Blocked . | . . . . . Robot Schematics Acquired . | . . . . . Robots Built . | . . . . . Authchips . | . . . . . Time . | . . . . . Total Robot Build Rating . | . . . . . Part Schematics Acquired . | . . . . . Parts Built . | . . . . . Authchips . | . . . . . Time . | . . . . . Total Part Build Rating . | . . . . . Parts Repaired . | . . . . . Time . | . . . . . Parts Recycled . | . . . . . Recycled Matter . | . . . . . Retrieved Matter . | . . . . . Retrieved Components . | . . . . . Parts Scanalyzed . | . . . . . Part Schematics Acquired . | . . . . . Parts Damaged . | . . . . . Bothacking | -11 -10 -10 -9 -9 ------------ Run | Jun Mat Min Mat Min Used RIF Installer . | . . . . . Robots Hacked . | . . . . . Non-combat . | . . . . . Combat . | . . . . . Robot Hacks Applied . | . . . . . Relay Couplers Released . | . . . . . Fabnet Peak Effective % . | . . . . . Robots Rewired . | . . . . . Allies Hacked . | . . . . . Hacks Repelled . | . . . . . Allies | -11 -10 -10 -9 -9 -------- Run | Jun Mat Min Mat Min Total Allies 1 | . . 1 . . Largest Group 1 | . . 1 1 . Highest-Rated Group 31 | . . 31 31 . Highest-Rated Ally 31 | . . 31 31 . Total Orders . | . . . . . Ally Attacks 15 | . . . 15 . Total Damage 196 | . . . 196 . Kills 4 | . . . 4 . Allies Corrupted . | . . . . . Allies Melted . | . . . . . Intel | -11 -10 -10 -9 -9 ------- Run | Jun Mat Min Mat Min Robot Analysis Total . | . . . . . Derelict Logs Recovered . | . . . . . Drone Launches . | . . . . . Drone Recoveries . | . . . . . Exploration | -11 -10 -10 -9 -9 ------------- Run | Jun Mat Min Mat Min Turns Passed 1102 | 71 130 70 281 550 Spaces Moved 851 | 40 168 110 312 221 Core 33 | 18 . . . 15 Treads 180 | . . . 16 164 Legs 50 | 22 28 . . . Wheels 42 | . . . . 42 Hover 546 | . 140 110 296 . Flight . | . . . . . Fastest Speed 48 | 50 56 56 48 90 Average Speed 105 | 140 67 56 58 219 Slowest Speed 350 | 250 120 56 240 350 Overloaded Moves . | . . . . . Propulsion Burnouts . | . . . . . Robots Hopped . | . . . . . Cave-ins Triggered . | . . . . . Exploration Rate (%) 32 | 3 25 40 41 53 Regions Visited 4 Branch Regions 2 Pre-discovered Areas . | . . . . . Known Exits Taken 1 | . 1 . . . Unknown Exits Taken 3 | 1 . 1 1 . Scrap Searched 3 | . . 1 . 2 Spaces Dug . | . . . . . Terrain Destroyed 36 | . 11 . 3 22 Melee . | . . . . . Projectile . | . . . . . AOE 36 | . 11 . 3 22 Terrain Rammed . | . . . . . Walls Destroyed . | . . . . . Machines Disabled . | . . . . . Actions | -11 -10 -10 -9 -9 --------- Run | Jun Mat Min Mat Min Total 968 | 51 180 118 370 249 Wait 3 | . . . 3 . Move 847 | 39 167 109 311 221 Hop . | . . . . . Pick Up 16 | 3 5 2 6 . Fast Attach 13 | 6 3 2 . 2 Attach 7 | . . . 6 1 Detach 1 | . . . 1 . Swap 5 | 1 . 1 3 . Drop 9 | . 3 4 2 . Fire 64 | . 2 . 38 24 Melee . | . . . . . Ram . | . . . . . Kick 2 | 2 . . . . Crush 1 | . . . . 1 Escape Stasis . | . . . . . Rewire . | . . . . . Trap . | . . . . . Miscellaneous . | . . . . . Route ------- -11/Junkyard -10/Materials (discovered 2 exits: *Min x2) -10/Mines -9/Materials (discovered 2 exits: [*Mat] / [*Min]) -9/Mines History --------- Turn | Location | Event 34 | -11/Junkyard | Discovered new exit (range 15) 72 | -11/Junkyard | Entered Materials 138 | -10/Materials | Identified exit to Mines 202 | -10/Materials | Entered Mines 221 | -10/Mines | A weapon hastily lodged in a ceiling crevice suddenly fell to the ground 264 | -10/Mines | Discovered new exit (range 7) 267 | -10/Mines | Received a Mining Laser from a helpful Derelict 272 | -10/Mines | Entered Materials 272 | -9/Materials | Accompanied by 1 ally 272 | -9/Materials | Evolved 2 slots: Propulsion x2 313 | -9/Materials | Build established: Mutant 454 | -9/Materials | Discovered new exit (range 15) 536 | -9/Materials | Lost 5 parts (1p3n1w) 551 | -9/Materials | Discovered new exit (range 16) 553 | -9/Materials | Entered Mines 599 | -9/Mines | Assembled infested the area 994 | -9/Mines | Core integrity fell below 50% 1005 | -9/Mines | Core integrity fell below 20% 1028 | -9/Mines | Lost 4 parts (1p1n1u1w) 1103 | -9/Mines | Destroyed self with Mini Grenade Launcher Last Messages --------------- 01047_ Acquired 66 matter. 01049_ The unstable cave ceiling collapses. 01050_ U-05 Engineer builds a Wall. 01052_ K-01 Serf collects debris. 01054_ U-05 Engineer lays Concrete. 01054_ Acquired 53 matter. 01057_ D5|LADP#6ZCDFE5YI> DO% 01061_ Acquired Com. Wheel. 01062_ Acquired 10 matter. 01063_ The unstable cave ceiling collapses. 01065_ K-01 Serf collects debris. 01066_ The unstable cave ceiling collapses. 01066_ U-05 Engineer builds a Wall. 01069_ Acquired Wheel. 01070_ K-01 Serf collects debris. 01070_ U-05 Engineer builds a Wall. 01072_ The unstable cave ceiling collapses. 01072_ K-01 Serf collects debris. 01075_ Acquired 10 matter. 01078_ U-05 Engineer lays Concrete. Map ----- +----------------------------------------------------+ | ?????????????????????????###=##### # # | | ???????????????????????? = !## # | | ??????????????????????????####?# !% | | ????????????????????????# # # ! !% # | | ????????????????????????# ## % ## | | ???????????????????????# ##### % ## | | ??????????????????????? ?????# | % # | | ?????????????????????????????#### #!! %### | | ????????????????????????????????### ## #?? | | ?????????????????????????????????##!#### #?? | | ??????????????????????????????????#%#??# #?? | | ??????????????????????????????????# #??#%#?? | | ??????????????????????????????????#%#??# #?? | | ??????????????????????????????????# #### ### | | ?????????????????##??????########## % | | ????????????????? ??????# ## #### | | ?????????????????# ??????# ##########??# ?? | | ?????????????????# ??????# #?????????????##? | | ?????????????????#s??????# ####### #?????? | | ????????????????##s??????# #?????? | | ????????????????# ?###??### ##### #?????? | | ????????????##### # #????# #?????????????? | | ???????????## #????# #?????????????? | | ???????##### #????# #?????????????? | | ????# ###### #?????????????? | | ????# @ #?????????????? | | ???????????##### ##########?????????????? | | ???????????????## ##??????????????????????? | | ????????????????###????????????????????????? | | ???????????????????????????????????????????? | | ???????????????????????????????????????????? | | ???????????????????????????????????????????? | | | | | | | | | | | | | | | | | | | | | | | | | | | | | | | | | | | | | +----------------------------------------------------+ Best States ------------- Heat Dissipation 28 Energy Generation 12 Energy Capacity 265 Matter Stores 300 Matter Capacity 300 Sight Range 16 Robot Scan Range 15 Terrain Scan Density 10 Resistance: KI 20 Resistance: TH 20 Resistance: EX 20 Resistance: EM 20 Resistance: I 20 Resistance: S 20 Resistance: P 20 Evasion (%) 55 Recoil Reduction 1 Offensive Hacking 10 Item Schematics ----------------- None Robot Schematics ------------------ None Fabricated ------------ Nothing Alien Tech Used ----------------- None Achievements -------------- None Challenges ------------ None Game ------ Seed RegenerativeDynamicHammer Manual? 0 Play Time 00:16:52 Cumulative 25.8 hours Start 2023.04.19 @ 16:51:02 End 2023.04.20 @ 07:31:39 Sessions 3 Manual Loads 0 Difficulty Adventurer Special Mode None Game No. 37 Rogue 23 Adventurer 14 Explorer 0 Win Type - Total 0 Types 0/0/0/0/0/0/0/0/0 Lore% 18 Gallery% 29 Achievement% 22 Wizard Run 0 Options --------- ASCII 0 Keyboard 0 Movement Mouse Keybinds 0 Fullscreen 1 Font 18/SmallcapsGlow Map View 76x50 Tactical HUD 1 Map Filters NONE Filters NONE Steam 1 RUN: d1d71cb1-ed0f-4d85-b3ea-ffb3f392a691